bitfinex/quotes_BTCUSD_20240723
["timestamp","ask_amount","ask_price","bid_price","bid_amount"]
[1721726629904,1.42137324,67037.0,67036.0,0.017]
[1721726630131,1.42137324,67037.0,67027.0,0.05]
[1721726630132,0.745955,67028.0,67027.0,0.05]
[1721726630414,0.90990528,67028.0,67027.0,0.05]
[1721726630758,1.20828728,67028.0,67027.0,0.05]
[1721726630969,1.20828728,67028.0,67027.0,0.14693297]
[1721726631172,0.90990528,67028.0,67027.0,0.09993297]
[1721726631398,0.84690528,67028.0,67027.0,0.09993297]
[1721726631606,0.84690528,67028.0,67027.0,0.14693297]
[1721726631816,0.84690528,67028.0,67027.0,0.09993297]
[1721726632480,0.47392328,67028.0,67027.0,0.14693297]
[1721726632672,0.77230528,67028.0,67027.0,0.14693297]
[1721726633462,0.47392328,67028.0,67027.0,0.14693297]
[1721726633859,0.77830528,67028.0,67027.0,0.14693297]
[1721726634683,0.77830528,67028.0,67027.0,0.09993297]
[1721726634880,1.07668728,67028.0,67027.0,0.05]
[1721726635279,1.21058885,67028.0,67027.0,0.05]
[1721726636077,1.21052562,67028.0,67027.0,0.05]
[1721726636496,1.21052562,67028.0,67027.0,0.09993297]
[1721726637092,1.21052562,67028.0,67027.0,0.14693297]
[1721726637093,0.77830528,67028.0,67027.0,0.14693297]
[1721726637852,0.77830528,67028.0,67027.0,0.09993297]
[1721726638059,0.77830528,67028.0,67027.0,0.14693297]
[1721726640266,0.77830528,67028.0,67027.0,0.09993297]
[1721726641902,0.77830528,67028.0,67027.0,0.14693297]
[1721726642106,0.03235028,67028.0,67027.0,0.14693297]
[1721726642310,0.18154128,67028.0,67027.0,0.14693297]
[1721726642514,0.03235028,67028.0,67027.0,0.14693297]
[1721726642721,0.12156216,67028.0,67027.0,0.14693297]
[1721726642914,0.11855742,67028.0,67027.0,0.14693297]
[1721726643135,0.13487138,67028.0,67027.0,0.14693297]
[1721726643360,0.13487138,67028.0,67027.0,0.15193297]
[1721726643565,0.1135558,67028.0,67027.0,0.055]
[1721726643770,0.02439028,67028.0,67027.0,0.15193297]
[1721726643979,0.11355368,67028.0,67027.0,0.15193297]
[1721726644215,0.00104,67028.0,67027.0,1.18001988]
[1721726644421,0.04563089,67028.0,67027.0,0.33711991]
[1721726644626,0.04563089,67028.0,67027.0,0.43405288]
[1721726644627,0.0902034,67028.0,67027.0,0.43405288]
[1721726644837,0.02439342,67028.0,67027.0,0.43505288]
[1721726645051,0.0892034,67028.0,67027.0,0.43505288]
[1721726645280,0.11255681,67028.0,67027.0,0.14693297]
[1721726645482,0.02339341,67028.0,67027.0,0.14693297]
[1721726645689,0.02339341,67028.0,67027.0,0.14893297]
[1721726645894,0.02339341,67028.0,67027.0,0.21003297]
[1721726646100,0.02339341,67028.0,67027.0,0.20803297]
[1721726646515,0.02339341,67028.0,67027.0,0.21203297]
[1721726646722,0.02339341,67028.0,67027.0,0.28853297]
[1721726646723,4e-05,67028.0,67027.0,0.28853297]
[1721726646902,0.08921656,67028.0,67027.0,0.28553297]
[1721726647963,0.08921656,67028.0,67027.0,0.28753297]
[1721726648171,0.08922518,67028.0,67027.0,0.28753297]
[1721726648377,4e-05,67028.0,67027.0,0.28753297]
[1721726649247,0.08923669,67028.0,67027.0,0.43455288]
[1721726649442,0.08923669,67028.0,67027.0,0.58374588]
[1721726649626,0.08925243,67028.0,67027.0,0.88413288]
[1721726649852,4e-05,67028.0,67027.0,0.88413288]
[1721726650058,0.08925366,67028.0,67027.0,0.88213288]
[1721726650261,0.08926961,67028.0,67027.0,1.18051988]
[1721726650467,4e-05,67028.0,67027.0,1.20751988]
[1721726650672,0.0892846,67028.0,67027.0,1.20751988]
[1721726651496,4e-05,67028.0,67027.0,1.20751988]
[1721726652134,0.04466124,67028.0,67027.0,1.3311498]
[1721726652344,4e-05,67028.0,67027.0,1.3311498]
[1721726652994,0.0446633,67028.0,67027.0,1.3311498]
[1721726653419,0.0446633,67028.0,67027.0,1.7295368]
[1721726653420,4e-05,67028.0,67027.0,1.7295368]
[1721726653625,4e-05,67028.0,67027.0,1.8795368]
[1721726654254,4e-05,67028.0,67027.0,1.8755368]
[1721726654463,0.00088,67028.0,67027.0,1.8755368]
[1721726654675,0.00088,67028.0,67027.0,1.69890688]
[1721726654893,0.00088,67028.0,67027.0,1.87284915]
[1721726655314,0.00088,67028.0,67027.0,1.88181689]
[1721726655527,0.00188,67028.0,67027.0,1.88581689]
[1721726655932,0.00188,67028.0,67027.0,1.89081689]
[1721726656347,0.00188,67028.0,67027.0,1.88581689]
[1721726656762,0.00088,67028.0,67027.0,1.84581689]
[1721726657183,0.00088,67028.0,67027.0,1.69888392]
[1721726657388,0.00088,67028.0,67027.0,1.89581689]
[1721726657796,0.00188,67028.0,67027.0,1.90538941]
[1721726658426,0.00088,67028.0,67027.0,1.89538941]
[1721726658632,0.00188,67028.0,67027.0,1.90538941]
[1721726659656,0.00188,67028.0,67027.0,1.84138941]
[1721726659863,0.00188,67028.0,67027.0,1.69445644]
[1721726660110,0.00088,67028.0,67027.0,1.69845644]
[1721726660564,0.00188,67028.0,67027.0,1.43100241]
[1721726660797,0.00188,67028.0,67027.0,1.30748762]
[1721726661013,0.00188,67028.0,67027.0,1.43109439]
[1721726661902,0.00188,67028.0,67027.0,1.45409439]
[1721726663984,0.00188,67028.0,67027.0,1.45443669]
[1721726665877,0.00188,67028.0,67027.0,1.55443669]
[1721726666082,0.00188,67028.0,67027.0,1.75282369]
[1721726666696,0.00188,67028.0,67027.0,1.85282369]
[1721726666955,0.00188,67028.0,67027.0,1.70589072]
[1721726667161,0.00188,67028.0,67027.0,1.72887462]
[1721726667375,0.00188,67028.0,67027.0,1.85281827]
[1721726667579,0.00188,67028.0,67027.0,1.80281827]
[1721726668379,0.00188,67028.0,67027.0,1.75281827]
[1721726669744,0.00188,67028.0,67027.0,1.85281827]
[1721726670182,0.00188,67028.0,67027.0,1.72887462]
[1721726670386,0.00188,67028.0,67027.0,1.85281775]
[1721726673192,0.00188,67028.0,67027.0,1.72887462]
[1721726673457,0.00188,67028.0,67027.0,2.09929602]
[1721726674674,0.00188,67028.0,67027.0,2.04929602]
[1721726675655,0.00188,67028.0,67027.0,1.95236305]
[1721726676008,0.00188,67028.0,67027.0,2.09949452]
[1721726676176,0.00188,67028.0,67027.0,2.32419648]
[1721726676379,0.00084,67037.0,67036.0,1.38234697]
[1721726676578,0.00084,67037.0,67036.0,1.60236688]
[1721726676986,0.00084,67037.0,67036.0,1.65236688]
[1721726677234,0.00084,67037.0,67036.0,1.60236688]
[1721726678116,0.00084,67037.0,67036.0,1.72592847]
[1721726678328,0.00084,67037.0,67036.0,1.64762847]
[1721726679782,0.00184,67037.0,67036.0,1.65662847]
[1721726679955,0.00184,67037.0,67036.0,1.67062847]
[1721726680340,0.00184,67037.0,67036.0,1.72062847]
[1721726680557,0.00084,67037.0,67036.0,1.69762847]
[1721726680974,0.00184,67037.0,67036.0,1.72262847]
[1721726681179,0.00084,67037.0,67036.0,1.71162847]
[1721726681386,0.00088,67037.0,67036.0,1.71199484]
[1721726681590,0.00088,67037.0,67036.0,1.64799484]
[1721726681999,0.00088,67037.0,67036.0,1.66199484]
[1721726682112,0.00088,67037.0,67036.0,1.67077798]
[1721726682309,0.00088,67037.0,67036.0,0.68983698]
[1721726682527,0.00088,67037.0,67036.0,1.28653098]
[1721726682732,0.00088,67037.0,67036.0,1.29653098]
[1721726683132,0.00188,67037.0,67036.0,1.73767798]
[1721726683718,0.00188,67037.0,67036.0,1.76067798]
[1721726684529,0.00188,67037.0,67036.0,1.76058788]
[1721726685315,0.00188,67037.0,67036.0,1.81058788]
[1721726688564,0.00188,67037.0,67036.0,1.66365491]
[1721726688762,0.00188,67037.0,67036.0,1.96160062]
[1721726690608,0.00188,67037.0,67036.0,1.68675002]
[1721726690836,0.00188,67037.0,67036.0,1.81034707]
[1721726692433,0.00188,67037.0,67036.0,1.76034707]
[1721726693881,0.00188,67037.0,67036.0,1.76056737]
[1721726694627,0.00188,67037.0,67036.0,1.61776737]
[1721726696026,0.00188,67037.0,67036.0,1.5208344]
[1721726696240,0.00188,67037.0,67036.0,0.99807337]
[1721726696467,0.06288,67037.0,67036.0,1.29642037]
[1721726696666,0.06288,67037.0,67036.0,0.9011404]
[1721726696870,0.06288,67037.0,67036.0,1.1994874]
[1721726697051,0.06288,67037.0,67036.0,1.19922831]
[1721726697313,0.00188,67037.0,67036.0,1.29616128]
[1721726699088,0.04659339,67037.0,67036.0,1.24916128]
[1721726699291,0.00188,67037.0,67036.0,1.9579008]
[1721726700108,0.00188,67037.0,67036.0,1.9578342]
[1721726700716,0.00188,67037.0,67036.0,1.9078342]
[1721726701552,0.00188,67037.0,67036.0,1.81090123]
[1721726701785,0.00188,67037.0,67036.0,1.9578342]
[1721726702054,0.00188,67037.0,67036.0,2.0078342]
[1721726702229,0.00188,67037.0,67036.0,1.9578342]
[1721726702682,0.00188,67037.0,67036.0,2.0078342]
[1721726702981,0.00188,67037.0,67036.0,2.3561812]
[1721726703112,0.00188,67037.0,67036.0,1.78345002]
[1721726703326,0.00188,67037.0,67036.0,2.35267153]
[1721726705631,0.00188,67037.0,67036.0,2.15573856]
[1721726705973,0.00188,67037.0,67036.0,2.35214925]
[1721726706114,0.00188,67037.0,67036.0,2.15521628]
[1721726706310,0.00188,67037.0,67036.0,2.35218521]
[1721726706514,0.00188,67037.0,67036.0,2.15525224]
[1721726707121,0.00188,67037.0,67036.0,2.35218521]
[1721726707971,0.001599,67037.0,67036.0,2.35218521]
[1721726709366,0.001599,67037.0,67036.0,2.35249428]
[1721726712367,0.001599,67037.0,67036.0,2.05414728]
[1721726712588,0.001599,67037.0,67036.0,1.73345002]
[1721726712800,0.001599,67037.0,67036.0,2.00400749]
[1721726713642,0.001599,67037.0,67036.0,1.74150749]
[1721726713861,0.142599,67037.0,67036.0,0.89582608]
[1721726714078,0.142599,67037.0,67036.0,1.19417308]
[1721726714294,0.142599,67037.0,67036.0,1.09724011]
[1721726714720,0.142599,67037.0,67036.0,1.19417308]
[1721726714930,0.18733597,67037.0,67036.0,1.19417308]
[1721726715136,0.18733597,67037.0,67036.0,1.29417308]
[1721726715344,0.142599,67037.0,67036.0,1.29417308]
[1721726715563,0.142599,67037.0,67036.0,1.17260302]
[1721726715778,0.142599,67037.0,67036.0,1.29486028]
[1721726716025,0.23207958,67037.0,67036.0,0.39319023]
[1721726716247,0.23207958,67037.0,67036.0,0.29319023]
[1721726716248,0.38125058,67037.0,67036.0,0.29319023]
[1721726716462,0.29177,67037.0,67036.0,0.29319023]
[1721726716690,0.6171897,67037.0,67036.0,0.14625726]
[1721726716890,0.585953,67031.0,67030.0,0.04993297]
[1721726717180,0.585967,67029.0,67028.0,0.09993297]
[1721726717396,1.04189112,67029.0,67028.0,0.09993297]
[1721726717600,0.90769287,67029.0,67028.0,0.09993297]
[1721726718493,1.04183245,67029.0,67028.0,0.09993297]
[1721726718705,0.90769287,67029.0,67028.0,0.14693297]
[1721726718915,0.16174787,67029.0,67028.0,0.14693297]
[1721726719125,0.16174787,67029.0,67028.0,0.44314388]
[1721726719325,0.25014723,67029.0,67028.0,0.44314388]
[1721726719540,0.0778,67029.0,67028.0,0.44314388]
[1721726719719,0.06704746,67030.0,67029.0,0.59449997]
[1721726719973,0.08939661,67033.0,67032.0,0.298364]
[1721726720185,0.08939661,67034.0,67033.0,0.54447297]
[1721726720392,0.08939661,67035.0,67034.0,0.59446697]
[1721726720593,0.0833,67036.0,67035.0,0.29610797]
[1721726720796,0.17269661,67036.0,67035.0,0.44312788]
[1721726721017,0.0833,67036.0,67035.0,0.44312788]
[1721726721217,0.0833,67036.0,67035.0,0.74147888]
[1721726721424,0.0833,67036.0,67035.0,0.44312788]
[1721726721838,0.0833,67036.0,67035.0,0.74147888]
[1721726722988,0.0843,67036.0,67035.0,0.74247888]
[1721726723250,0.0833,67036.0,67035.0,0.74147888]
[1721726723641,0.15133085,67036.0,67035.0,0.74247888]
[1721726723850,0.15233085,67036.0,67035.0,0.74247888]
[1721726724071,0.15233085,67036.0,67035.0,1.04082988]
[1721726724072,0.06903101,67036.0,67035.0,1.04082988]
[1721726724279,0.002,67036.0,67035.0,1.46218088]
[1721726724478,0.002,67036.0,67035.0,1.57196118]
[1721726724897,0.001,67036.0,67035.0,1.27261018]
[1721726725041,0.001,67036.0,67035.0,0.97425918]
[1721726725250,0.002,67036.0,67035.0,0.98325918]
[1721726725647,0.002,67036.0,67035.0,1.29038023]
[1721726725916,0.001,67036.0,67035.0,0.51273318]
[1721726726056,0.19428664,67036.0,67035.0,0.25593297]
[1721726726309,0.1496,67036.0,67035.0,0.25593297]
[1721726726484,0.21663101,67036.0,67035.0,0.40510797]
[1721726726842,0.06803101,67036.0,67035.0,0.55212788]
[1721726727045,0.06803101,67036.0,67035.0,1.14882988]
[1721726727285,0.001,67036.0,67035.0,1.62276961]
[1721726727462,0.002,67036.0,67035.0,1.51208088]
[1721726727662,0.002,67036.0,67035.0,1.62276866]
[1721726727869,0.002,67036.0,67035.0,1.64576866]
[1721726730497,0.002,67036.0,67035.0,1.64559752]
[1721726731302,0.002,67036.0,67035.0,1.58069752]
[1721726731591,0.002,67036.0,67035.0,1.28234652]
[1721726733541,0.002,67036.0,67035.0,1.17182988]
[1721726733824,0.002,67036.0,67035.0,1.28278213]
[1721726734862,0.002,67036.0,67035.0,1.58113313]
[1721726736655,0.002,67036.0,67035.0,1.5809765]
[1721726736886,0.002,67036.0,67035.0,1.58077005]
[1721726738191,0.002,67036.0,67035.0,1.47018088]
[1721726740412,0.4696,67049.0,67037.0,0.298339]
[1721726740710,0.298268,67054.0,67048.0,0.09693297]
[1721726740925,0.298268,67054.0,67053.0,0.04993297]
[1721726741059,0.447401,67054.0,67053.0,0.04993297]
[1721726741486,0.447401,67054.0,67053.0,0.09693297]
[1721726741487,0.17247959,67054.0,67053.0,0.09693297]
[1721726741695,0.17247959,67054.0,67053.0,0.04993297]
[1721726742116,0.02334659,67054.0,67053.0,0.14693297]
[1721726742529,0.17247959,67054.0,67053.0,0.05]
[1721726742756,0.02334659,67054.0,67053.0,0.09993297]
[1721726742964,0.447393,67055.0,67054.0,0.04993297]
[1721726743164,0.47073945,67055.0,67054.0,0.04993297]
[1721726743406,0.29457745,67055.0,67054.0,0.04993297]
[1721726743797,0.59283945,67055.0,67054.0,0.04993297]
[1721726743994,0.29457745,67055.0,67054.0,0.04993297]
[1721726744597,0.29457745,67055.0,67053.0,0.051]
[1721726744779,0.02334645,67054.0,67053.0,0.051]
[1721726744980,0.17247945,67054.0,67053.0,0.051]
[1721726745199,0.17247945,67054.0,67053.0,0.05]
[1721726745399,0.149135,67053.0,67052.0,0.05]
[1721726745643,0.55345245,67053.0,67052.0,0.05]
[1721726746309,0.55345245,67053.0,67052.0,0.09993297]
[1721726746913,0.85172345,67053.0,67052.0,0.09993297]
[1721726747817,0.87572345,67053.0,67052.0,0.10093297]
[1721726748444,0.56645245,67053.0,67052.0,0.09993297]
[1721726748647,0.55345245,67053.0,67052.0,0.09993297]
[1721726748853,0.57445245,67053.0,67052.0,0.10093297]
[1721726750563,0.25518145,67053.0,67052.0,0.09993297]
[1721726750780,0.39624218,67053.0,67052.0,0.10093297]
[1721726750992,0.56945245,67053.0,67052.0,0.10093297]
[1721726751404,0.56245245,67053.0,67052.0,0.09993297]
[1721726751808,0.56845245,67053.0,67052.0,0.10093297]
[1721726752220,0.55345245,67053.0,67052.0,0.09993297]
[1721726752416,0.55345245,67053.0,67052.0,0.14693297]
[1721726752417,0.10604645,67053.0,67052.0,0.14693297]
[1721726752643,0.02934645,67053.0,67052.0,0.14793297]
[1721726753037,0.16341223,67053.0,67052.0,0.14793297]
[1721726753825,0.03734645,67053.0,67052.0,0.14793297]
[1721726754031,0.02334645,67053.0,67052.0,0.09993297]
[1721726754237,0.31154723,67053.0,67052.0,0.09993297]
[1721726754437,0.69081823,67053.0,67052.0,0.05]
[1721726754640,0.55175245,67053.0,67052.0,0.10085697]
[1721726754843,0.54675245,67053.0,67052.0,0.050924]
[1721726755035,0.55575245,67053.0,67052.0,0.10085697]
[1721726755448,0.54675245,67053.0,67052.0,0.10085697]
[1721726755654,0.55175245,67053.0,67052.0,0.10085697]
[1721726755783,0.55675245,67053.0,67052.0,0.050924]
[1721726756581,0.89922345,67053.0,67052.0,0.050924]
[1721726757166,0.88922345,67053.0,67052.0,0.050924]
[1721726757341,0.89622345,67053.0,67052.0,0.050924]
[1721726757503,0.90122345,67053.0,67052.0,0.050924]
[1721726757922,0.59795245,67053.0,67052.0,0.10085697]
[1721726758302,0.60395245,67053.0,67052.0,0.10185697]
[1721726760826,0.90222345,67053.0,67052.0,0.051924]
[1721726761021,0.90222345,67053.0,67052.0,0.001924]
[1721726761022,1.34751436,67053.0,67052.0,0.001924]
[1721726761165,1.42560111,67053.0,67052.0,0.001924]
[1721726761368,1.72986376,67053.0,67052.0,0.001924]
[1721726761649,2.02813966,67053.0,67052.0,0.001924]
[1721726762200,2.01513966,67053.0,67052.0,0.000924]
[1721726762602,2.02613966,67053.0,67052.0,0.000924]
[1721726762826,2.01513966,67053.0,67052.0,0.000924]
[1721726763029,2.11513966,67053.0,67052.0,0.000924]
[1721726763228,2.41341066,67053.0,67052.0,0.000924]
[1721726763443,2.53231928,67053.0,67052.0,0.001924]
[1721726763653,2.08708563,67053.0,67052.0,0.001924]
[1721726764116,2.07708563,67053.0,67052.0,0.000924]
[1721726764320,1.98217701,67053.0,67052.0,0.001924]
[1721726764530,2.05404801,67053.0,67052.0,0.001924]
[1721726764734,2.12993106,67053.0,67052.0,0.001924]
[1721726765382,2.14393106,67053.0,67052.0,0.001924]
[1721726765585,2.14393106,67053.0,67028.0,0.000924]
[1721726765586,0.745922,67031.0,67030.0,0.002794]
[1721726765792,0.745922,67031.0,67028.0,0.050924]
[1721726765793,0.447567,67029.0,67028.0,0.050924]
[1721726765994,0.9034871,67029.0,67028.0,0.10085697]
[1721726766219,0.3067311,67029.0,67028.0,0.10085697]
[1721726766469,0.47091345,67029.0,67028.0,0.10085697]
[1721726766902,0.76929145,67029.0,67028.0,0.050924]
[1721726767749,0.77029145,67029.0,67028.0,0.057924]
[1721726767959,1.06866945,67029.0,67028.0,0.007924]
[1721726768376,1.06766945,67029.0,67028.0,0.000924]
[1721726768588,1.15246945,67029.0,67028.0,0.000924]
[1721726769006,1.15346945,67029.0,67028.0,0.000924]
[1721726769218,1.15246945,67029.0,67028.0,0.000924]
[1721726769628,1.16146945,67029.0,67028.0,0.000924]
[1721726769792,1.15646945,67029.0,67028.0,0.000924]
[1721726769994,1.16446945,67029.0,67028.0,0.001924]
[1721726771039,1.86996736,67029.0,67028.0,0.001924]
[1721726771253,1.86196736,67029.0,67028.0,0.000924]
[1721726771484,1.86196736,67029.0,67003.0,0.149245]
[1721726771485,0.746177,67008.0,67007.0,0.05]
[1721726771693,0.38848145,67008.0,67007.0,0.05]
[1721726771886,0.98542345,67008.0,67007.0,0.05]
[1721726772094,0.98542345,67008.0,67003.0,0.0611]
[1721726772095,0.23924645,67008.0,67003.0,0.0611]
[1721726772314,0.447754,67001.0,67000.0,0.050924]
[1721726772521,0.53694372,67001.0,67000.0,0.050924]
[1721726772724,0.23844072,67001.0,67000.0,0.10085697]
[1721726772975,0.53694372,67001.0,67000.0,0.10085697]
[1721726773181,0.447754,67001.0,67000.0,0.10085697]
[1721726773377,0.447754,67001.0,67000.0,0.14785697]
[1721726773581,0.447754,67001.0,67000.0,0.10085697]
[1721726773791,0.149251,67001.0,67000.0,0.14785697]
[1721726774318,0.447754,67001.0,67000.0,0.10085697]
[1721726774515,0.447754,67001.0,67000.0,0.14785697]
[1721726774733,0.001,67001.0,67000.0,0.15285697]
[1721726774950,0.001,67001.0,67000.0,0.89063688]
[1721726775152,0.001,67001.0,67000.0,1.21214388]
[1721726775391,0.001,67001.0,67000.0,1.56065088]
[1721726775596,0.001,67001.0,67000.0,1.66065088]
[1721726776007,0.618809,67020.0,67019.0,0.15723297]
[1721726776227,0.917227,67020.0,67019.0,0.16023297]
[1721726776439,0.298427,67018.0,67017.0,0.04993297]
[1721726776648,0.746077,67017.0,67016.0,0.05]
[1721726776857,0.149224,67013.0,67012.0,0.04993297]
[1721726777057,0.04451347,67019.0,67010.0,0.0625]
[1721726777058,0.447681,67012.0,67011.0,0.09993297]
[1721726777482,0.447687,67011.0,67010.0,0.14693297]
[1721726777662,0.149229,67011.0,67010.0,0.14693297]
[1721726778957,0.149231,67010.0,67009.0,0.09993297]
[1721726779231,0.447693,67010.0,67009.0,0.04993297]
[1721726779383,0.149229,67012.0,67011.0,0.14693297]
[1721726780143,0.149229,67012.0,67011.0,0.09993297]
[1721726780144,0.447683,67012.0,67011.0,0.09993297]
[1721726780367,0.447683,67012.0,67011.0,0.14693297]
[1721726780842,0.298442,67015.0,67011.0,0.14693297]
[1721726781081,0.149225,67013.0,67012.0,0.14693297]
[1721726781261,0.746123,67013.0,67012.0,0.05]
[1721726781501,0.746123,67013.0,67012.0,0.09993297]
[1721726781677,0.447674,67013.0,67012.0,0.14693297]
[1721726781819,0.149225,67013.0,67012.0,0.14693297]
[1721726782028,0.149224,67014.0,67013.0,0.14693297]
[1721726782228,0.447669,67014.0,67013.0,0.09993297]
[1721726782584,0.149224,67014.0,67013.0,0.09993297]
[1721726782791,0.447669,67014.0,67013.0,0.09993297]
[1721726783535,0.149224,67014.0,67013.0,0.09993297]
[1721726783771,0.452669,67014.0,67013.0,0.09993297]
[1721726784116,0.447669,67014.0,67013.0,0.09993297]
[1721726784542,0.154224,67014.0,67013.0,0.14693297]
[1721726784764,0.005,67014.0,67013.0,0.22583297]
[1721726785017,0.011,67014.0,67013.0,0.29053297]
[1721726785219,0.011,67014.0,67013.0,0.58898197]
[1721726785413,0.011,67014.0,67013.0,0.73820597]
[1721726785587,0.011,67014.0,67013.0,1.03665497]
[1721726785753,0.011,67014.0,67013.0,0.73820597]
[1721726785754,0.006,67014.0,67013.0,0.73820597]
[1721726786196,0.011,67014.0,67013.0,0.73820597]
[1721726786405,0.005,67014.0,67013.0,0.73820597]
[1721726786787,0.011,67014.0,67013.0,0.73820597]
[1721726787360,0.009,67014.0,67013.0,0.73820597]
[1721726787723,0.012,67014.0,67013.0,0.73820597]
[1721726788162,0.012,67014.0,67013.0,1.03665497]
[1721726788334,0.012,67014.0,67013.0,1.18367488]
[1721726788532,0.012,67014.0,67013.0,1.20667488]
[1721726789150,0.009,67014.0,67013.0,0.90822588]
[1721726789507,0.01,67014.0,67013.0,0.91422588]
[1721726789792,0.001,67014.0,67013.0,0.91422588]
[1721726789925,0.001,67014.0,67013.0,1.20967488]
[1721726790333,1.2672,67026.0,67025.0,0.14693297]
[1721726790539,0.149189,67029.0,67028.0,0.05]
[1721726790737,0.447567,67029.0,67028.0,0.05]
[1721726790937,0.44758,67027.0,67026.0,0.09993297]
[1721726791120,0.149193,67027.0,67026.0,0.05]
[1721726791322,0.44758,67027.0,67026.0,0.09993297]
[1721726791524,0.44758,67027.0,67026.0,0.04993297]
[1721726791812,0.447586,67026.0,67025.0,0.04993297]
[1721726791946,0.149198,67025.0,67024.0,0.04993297]
[1721726792139,0.447594,67025.0,67024.0,0.04993297]
[1721726792584,0.1492,67024.0,67023.0,0.09993297]
[1721726793405,0.4476,67024.0,67023.0,0.09993297]
[1721726793872,0.4476,67024.0,67023.0,0.05]
[1721726794075,0.447613,67022.0,67021.0,0.04993297]
[1721726794752,0.149206,67021.0,67020.0,0.05]
[1721726794986,0.149206,67021.0,67020.0,0.09993297]
[1721726795186,0.149205,67022.0,67020.0,0.09993297]
[1721726795395,0.149205,67022.0,67021.0,0.09993297]
[1721726795619,0.149205,67022.0,67021.0,0.04993297]
[1721726795901,0.151205,67022.0,67021.0,0.09993297]
[1721726796108,0.151205,67022.0,67021.0,0.14693297]
[1721726796109,0.002,67022.0,67021.0,0.14693297]
[1721726796876,0.004,67022.0,67021.0,0.14693297]
[1721726798393,0.153204,67022.0,67021.0,0.09993297]
[1721726798558,0.153204,67022.0,67021.0,0.14693297]
[1721726798559,0.004,67022.0,67021.0,0.14693297]
[1721726800327,0.02735626,67022.0,67021.0,0.14693297]
[1721726800527,0.004,67022.0,67021.0,0.14693297]
[1721726800976,0.004,67022.0,67021.0,0.22273297]
[1721726801186,0.004,67022.0,67021.0,0.28753297]
[1721726801910,0.004,67022.0,67021.0,0.58375888]
[1721726802115,0.004,67022.0,67021.0,1.31368266]
[1721726802116,0.002,67022.0,67021.0,1.31368266]
[1721726802243,0.004,67022.0,67021.0,1.61209566]
[1721726802857,0.002,67022.0,67021.0,1.61209566]
[1721726803300,4e-05,67025.0,67024.0,0.84293297]
[1721726803580,4e-05,67025.0,67024.0,1.07365288]
[1721726803729,4e-05,67025.0,67024.0,1.12365288]
[1721726803920,4e-05,67025.0,67024.0,0.20763297]
[1721726804814,4e-05,67025.0,67024.0,0.35683297]
[1721726805158,4e-05,67025.0,67024.0,0.35983297]
[1721726805159,0.00104,67025.0,67024.0,0.35983297]
[1721726806169,0.00104,67025.0,67024.0,0.66223297]
[1721726806373,4e-05,67025.0,67024.0,0.73433297]
[1721726806673,4e-05,67025.0,67024.0,0.84503563]
[1721726806877,4e-05,67025.0,67024.0,0.73633297]
[1721726807278,4e-05,67025.0,67024.0,0.84680983]
[1721726807492,4e-05,67025.0,67024.0,1.18175288]
[1721726807690,4e-05,67025.0,67024.0,1.20475288]
[1721726808787,4e-05,67025.0,67024.0,1.61361389]
[1721726809244,4e-05,67025.0,67024.0,1.60961389]
[1721726809554,0.00104,67025.0,67024.0,1.76561389]
[1721726810394,0.00104,67025.0,67024.0,1.76323844]
[1721726810585,0.00204,67025.0,67024.0,1.76623844]
[1721726812154,0.00204,67025.0,67024.0,1.71623844]
[1721726812365,0.00204,67025.0,67024.0,1.76623844]
[1721726812749,0.00204,67025.0,67024.0,1.81623844]
[1721726813319,0.00204,67025.0,67024.0,1.70615288]
[1721726813525,0.00204,67025.0,67024.0,1.81622558]
[1721726813724,0.00204,67025.0,67024.0,1.82526054]
[1721726815643,0.00204,67025.0,67024.0,2.17366054]
[1721726815798,0.00204,67025.0,67024.0,1.97672757]
[1721726816000,0.00204,67025.0,67024.0,2.12366054]
[1721726816464,0.00104,67025.0,67024.0,1.86065487]
[1721726816670,0.00104,67025.0,67024.0,1.9699294]
[1721726816866,4e-05,67025.0,67024.0,2.11386237]
[1721726817279,0.00104,67025.0,67024.0,2.11686237]
[1721726818290,0.00104,67025.0,67024.0,2.12386237]
[1721726818291,0.00204,67025.0,67024.0,2.12386237]
[1721726819704,0.00204,67025.0,67024.0,2.12327422]
[1721726820083,0.00204,67025.0,67024.0,2.17327422]
[1721726821065,4e-05,67025.0,67024.0,2.16327422]
[1721726821276,4e-05,67025.0,67024.0,2.16314597]
[1721726821488,0.00204,67025.0,67024.0,2.18414597]
[1721726822070,0.00104,67025.0,67024.0,2.17314597]
[1721726822438,0.00204,67025.0,67024.0,2.18714597]
[1721726822653,0.00204,67025.0,67024.0,2.07858784]
[1721726822860,0.00104,67025.0,67024.0,2.17688009]
[1721726823288,0.00204,67025.0,67024.0,2.19088009]
[1721726823506,0.00204,67025.0,67024.0,1.99394712]
[1721726823716,0.00204,67025.0,67024.0,2.19088009]
[1721726824999,0.00204,67025.0,67024.0,1.99394712]
[1721726825223,0.00204,67025.0,67024.0,2.19088009]
[1721726825839,0.00204,67025.0,67024.0,2.19099563]
[1721726829118,0.00204,67025.0,67024.0,2.19177112]
[1721726829319,0.00204,67025.0,67024.0,2.32835362]
[1721726829495,0.00204,67025.0,67024.0,2.19177112]
[1721726830116,0.00204,67025.0,67024.0,1.99483815]
[1721726830271,0.00204,67025.0,67024.0,2.32839877]
[1721726832106,0.00204,67025.0,67024.0,2.32677199]
[1721726832322,0.00204,67025.0,67024.0,2.41317199]
[1721726833260,0.00084,67028.0,67027.0,2.16756097]
[1721726833465,0.13343299,67052.0,67049.0,0.298289]
[1721726833466,0.04461649,67051.0,67049.0,0.298289]
[1721726833666,0.0764,67052.0,67051.0,0.09693297]
[1721726833895,0.0764,67052.0,67051.0,0.69137288]
[1721726834012,0.0764,67052.0,67051.0,1.01265288]
[1721726834829,0.0864,67052.0,67051.0,1.01365288]
[1721726835773,0.06660725,67052.0,67051.0,1.01365288]
[1721726836572,0.06660725,67052.0,67051.0,0.31795288]
[1721726836777,0.06660725,67052.0,67051.0,0.14893297]
[1721726836778,0.11080725,67052.0,67051.0,0.14893297]
[1721726837240,0.15541542,67052.0,67051.0,0.14893297]
[1721726837446,0.60282742,67052.0,67051.0,0.10193297]
[1721726837587,0.58156589,67052.0,67051.0,0.10193297]
[1721726837789,0.67078224,67052.0,67051.0,0.10193297]
[1721726837978,0.58156589,67052.0,67051.0,0.10193297]
[1721726838180,0.28329089,67052.0,67051.0,0.10193297]